[Event "*** SCC Grand Prix: Titled Tuesday Blitz"]
[Site "Chess.com"]
[Date "2020.06.09"]
[Round "2"]
[White "LiemLe"]
[Black "Roman_Ovetchkin"]
[Result "1/2-1/2"]
[WhiteElo "2904"]
[BlackElo "2600"]
[TimeControl "180+1"]
[EndTime "9:18:31 PDT"]
[Termination "Game drawn by repetition"]

1. c4 {[%clk 0:03:00.9]} 1... Nf6 {[%clk 0:02:55.4]} 2. Nc3 {[%clk 0:03:00.4]}
2... g6 {[%clk 0:02:55.7]} 3. e4 {[%clk 0:02:59.8]} 3... d6 {[%clk 0:02:55.7]}
4. d4 {[%clk 0:02:59.9]} 4... Bg7 {[%clk 0:02:56.2]} 5. h3 {[%clk 0:03:00.5]}
5... O-O {[%clk 0:02:55.9]} 6. Nf3 {[%clk 0:03:01.1]} 6... e5 {[%clk 0:02:54.1]}
7. d5 {[%clk 0:03:01.1]} 7... Nh5 {[%clk 0:02:49.2]} 8. g3 {[%clk 0:03:00.9]}
8... Qe8 {[%clk 0:02:46.2]} 9. Be2 {[%clk 0:02:54.4]} 9... f5 {[%clk 0:02:39.1]}
10. exf5 {[%clk 0:02:55.3]} 10... gxf5 {[%clk 0:02:38.4]} 11. Nh4 {[%clk
0:02:54.9]} 11... Nf6 {[%clk 0:02:37.8]} 12. Qc2 {[%clk 0:02:54.3]} 12... e4
{[%clk 0:01:56.1]} 13. Be3 {[%clk 0:02:50.1]} 13... Na6 {[%clk 0:01:52.9]} 14.
a3 {[%clk 0:02:41.5]} 14... Nc5 {[%clk 0:01:48.9]} 15. O-O-O {[%clk 0:02:41.2]}
15... Bd7 {[%clk 0:01:41.6]} 16. Kb1 {[%clk 0:02:38.6]} 16... a5 {[%clk
0:01:41]} 17. Rhg1 {[%clk 0:02:19]} 17... Qe7 {[%clk 0:01:30.8]} 18. g4 {[%clk
0:02:08.5]} 18... Nxg4 {[%clk 0:01:23]} 19. Nxf5 {[%clk 0:01:56.9]} 19... Bxf5
{[%clk 0:01:22.1]} 20. Bxg4 {[%clk 0:01:53.9]} 20... Bg6 {[%clk 0:01:21.2]} 21.
Ka2 {[%clk 0:01:39.4]} 21... Nd3 {[%clk 0:01:20.3]} 22. Be6+ {[%clk 0:01:35.9]}
22... Kh8 {[%clk 0:01:19.7]} 23. Rxg6 {[%clk 0:01:22.1]} 23... hxg6 {[%clk
0:01:19]} 24. Nxe4 {[%clk 0:01:22.6]} 24... Ne5 {[%clk 0:01:05]} 25. Bg5 {[%clk
0:01:14.9]} 25... Qe8 {[%clk 0:01:02.8]} 26. f4 {[%clk 0:01:14.8]} 26... Nf3
{[%clk 0:01:01.3]} 27. Qf2 {[%clk 0:01:01.5]} 27... Nxg5 {[%clk 0:01:00.7]} 28.
Nxg5 {[%clk 0:01:02.4]} 28... Bh6 {[%clk 0:00:59.7]} 29. Qd4+ {[%clk 0:00:45.8]}
29... Bg7 {[%clk 0:00:57.5]} 30. Qf2 {[%clk 0:00:46.3]} 30... Bh6 {[%clk
0:00:56.9]} 31. Rg1 {[%clk 0:00:46.9]} 31... Qe7 {[%clk 0:00:55.1]} 32. Qc2
{[%clk 0:00:33]} 32... Rf6 {[%clk 0:00:49.7]} 33. Ne4 {[%clk 0:00:20.3]} 33...
Rxf4 {[%clk 0:00:47.7]} 34. Rxg6 {[%clk 0:00:19.5]} 34... Bg7 {[%clk 0:00:46.5]}
35. Ng5 {[%clk 0:00:18.5]} 35... Raf8 {[%clk 0:00:44.8]} 36. Qe2 {[%clk
0:00:14.4]} 36... Rh4 {[%clk 0:00:43]} 37. Qe1 {[%clk 0:00:11.4]} 37... Rh6
{[%clk 0:00:40.5]} 38. Qe4 {[%clk 0:00:09.2]} 38... Rf6 {[%clk 0:00:37.2]} 39.
Rxh6+ {[%clk 0:00:09.2]} 39... Bxh6 {[%clk 0:00:36.4]} 40. Nf3 {[%clk
0:00:08.6]} 40... Qg7 {[%clk 0:00:33.4]} 41. Nh4 {[%clk 0:00:06.9]} 41... Bg5
{[%clk 0:00:31.3]} 42. Nf5 {[%clk 0:00:06.7]} 42... Qg6 {[%clk 0:00:31.3]} 43.
h4 {[%clk 0:00:06.8]} 43... Bh6 {[%clk 0:00:30.9]} 44. Qd4 {[%clk 0:00:06.4]}
44... Kh7 {[%clk 0:00:29.9]} 45. Qe4 {[%clk 0:00:06.5]} 45... Kh8 {[%clk
0:00:29.3]} 46. Qd4 {[%clk 0:00:06.5]} 46... Bg7 {[%clk 0:00:28.2]} 47. Qe4
{[%clk 0:00:04.6]} 47... Bh6 {[%clk 0:00:25.5]} 1/2-1/2

[Event "*** SCC Grand Prix: Titled Tuesday Blitz"]
[Site "Chess.com"]
[Date "2020.06.09"]
[Round "2"]
[White "Omk124"]
[Black "yobdc"]
[Result "0-1"]
[WhiteElo "2421"]
[BlackElo "2216"]
[TimeControl "180+1"]
[EndTime "9:18:31 PDT"]
[Termination "yobdc won by resignation"]

1. e4 {[%clk 0:03:00.9]} 1... e5 {[%clk 0:02:59.9]} 2. Nf3 {[%clk 0:03:00.8]}
2... Nc6 {[%clk 0:03:00.3]} 3. Bc4 {[%clk 0:03:01.2]} 3... Bc5 {[%clk
0:02:59.9]} 4. c3 {[%clk 0:03:01]} 4... Nf6 {[%clk 0:02:59.8]} 5. d3 {[%clk
0:03:01.3]} 5... d6 {[%clk 0:02:58.1]} 6. O-O {[%clk 0:03:01.4]} 6... a5 {[%clk
0:02:56.3]} 7. Nbd2 {[%clk 0:02:59]} 7... a4 {[%clk 0:02:56.1]} 8. a3 {[%clk
0:02:56.4]} 8... h6 {[%clk 0:02:50.2]} 9. Bb5 {[%clk 0:02:55.7]} 9... Bd7 {[%clk
0:02:48]} 10. Bxa4 {[%clk 0:02:52.4]} 10... g5 {[%clk 0:02:37.6]} 11. Bxc6
{[%clk 0:02:47.4]} 11... Bxc6 {[%clk 0:02:37.3]} 12. d4 {[%clk 0:02:48.2]} 12...
exd4 {[%clk 0:02:27.1]} 13. cxd4 {[%clk 0:02:49.1]} 13... Bb6 {[%clk 0:02:27.5]}
14. d5 {[%clk 0:02:43.4]} 14... Bb5 {[%clk 0:02:22.1]} 15. Re1 {[%clk
0:02:30.8]} 15... Ng4 {[%clk 0:02:22.2]} 16. Qb3 {[%clk 0:02:12.1]} 16... Bxf2+
{[%clk 0:02:11.4]} 17. Kh1 {[%clk 0:02:12.1]} 17... Ba6 {[%clk 0:01:54]} 18. e5
{[%clk 0:02:05.6]} 18... Bxe1 {[%clk 0:01:53.6]} 19. Qa4+ {[%clk 0:02:05.5]}
19... Qd7 {[%clk 0:01:46.2]} 20. Qxd7+ {[%clk 0:02:03.3]} 20... Kxd7 {[%clk
0:01:47.1]} 21. Nxe1 {[%clk 0:02:04.2]} 21... Nxe5 {[%clk 0:01:43.5]} 22. Ne4
{[%clk 0:02:04.5]} 22... f5 {[%clk 0:01:42.3]} 23. Ng3 {[%clk 0:02:04.7]} 23...
f4 {[%clk 0:01:42.1]} 24. Ne4 {[%clk 0:02:04.8]} 24... Nd3 {[%clk 0:01:34.6]}
25. Bd2 {[%clk 0:02:02.5]} 25... Rhf8 {[%clk 0:01:31.6]} 26. Bc3 {[%clk
0:01:59.9]} 26... Ne5 {[%clk 0:01:16.7]} 27. Nf3 {[%clk 0:01:43.6]} 27... Rae8
{[%clk 0:01:14]} 28. Nxe5+ {[%clk 0:01:31.8]} 28... dxe5 {[%clk 0:01:14.2]} 29.
Nc5+ {[%clk 0:01:32.7]} 29... Kc8 {[%clk 0:01:13.8]} 30. Re1 {[%clk 0:01:31.6]}
30... Bc4 {[%clk 0:01:08.7]} 31. Ne6 {[%clk 0:01:19]} 31... Rf7 {[%clk
0:00:59.3]} 32. Rxe5 {[%clk 0:00:46.5]} 32... Bxd5 {[%clk 0:00:53.6]} 33. Rxd5
{[%clk 0:00:45.3]} 33... Rxe6 {[%clk 0:00:53.2]} 34. Kg1 {[%clk 0:00:46.2]}
34... Rd7 {[%clk 0:00:53.3]} 35. Rf5 {[%clk 0:00:46]} 35... Re2 {[%clk
0:00:48.9]} 36. Kf1 {[%clk 0:00:45]} 36... Rc2 {[%clk 0:00:46.5]} 37. Ke1 {[%clk
0:00:34.4]} 37... Rxg2 {[%clk 0:00:45.1]} 38. Bf6 {[%clk 0:00:30.5]} 38... b6
{[%clk 0:00:44.1]} 39. h4 {[%clk 0:00:28.8]} 39... Rf7 {[%clk 0:00:33.8]} 40.
hxg5 {[%clk 0:00:25]} 40... hxg5 {[%clk 0:00:33.9]} 41. Rxg5 {[%clk 0:00:25.6]}
41... Rxg5 {[%clk 0:00:33.5]} 42. Bxg5 {[%clk 0:00:26.5]} 42... Kd7 {[%clk
0:00:34]} 43. Kf2 {[%clk 0:00:26.8]} 43... Ke6 {[%clk 0:00:33]} 44. Kf3 {[%clk
0:00:27.7]} 44... Kd5 {[%clk 0:00:33.2]} 45. Bxf4 {[%clk 0:00:28]} 45... Kc4
{[%clk 0:00:33]} 46. Ke3 {[%clk 0:00:27.2]} 46... Rxf4 {[%clk 0:00:32.6]} 47.
Kxf4 {[%clk 0:00:20.4]} 47... Kb3 {[%clk 0:00:32.9]} 48. Ke4 {[%clk 0:00:16.1]}
48... Kxb2 {[%clk 0:00:33]} 49. Kd5 {[%clk 0:00:17]} 49... Kxa3 {[%clk
0:00:33.1]} 50. Kc6 {[%clk 0:00:17.9]} 50... Ka4 {[%clk 0:00:33.4]} 51. Kxc7
{[%clk 0:00:18.8]} 0-1

[Event "*** SCC Grand Prix: Titled Tuesday Blitz"]
[Site "Chess.com"]
[Date "2020.06.09"]
[Round "2"]
[White "rynos0411"]
[Black "ZenBull"]
[Result "1-0"]
[WhiteElo "2414"]
[BlackElo "2105"]
[TimeControl "180+1"]
[EndTime "9:18:33 PDT"]
[Termination "rynos0411 won on time"]

1. d4 {[%clk 0:03:00.9]} 1... Nf6 {[%clk 0:02:59.2]} 2. c4 {[%clk 0:02:58.2]}
2... e6 {[%clk 0:02:59.3]} 3. Nf3 {[%clk 0:02:57.4]} 3... d5 {[%clk 0:02:58.7]}
4. Nc3 {[%clk 0:02:57.3]} 4... Bb4 {[%clk 0:02:55.9]} 5. cxd5 {[%clk 0:02:55.2]}
5... exd5 {[%clk 0:02:54.2]} 6. Bg5 {[%clk 0:02:55.1]} 6... h6 {[%clk
0:02:46.3]} 7. Bxf6 {[%clk 0:02:54.8]} 7... Qxf6 {[%clk 0:02:46.3]} 8. Qa4+
{[%clk 0:02:53.8]} 8... Nc6 {[%clk 0:02:46.1]} 9. e3 {[%clk 0:02:54.2]} 9... O-O
{[%clk 0:02:44.8]} 10. Be2 {[%clk 0:02:54.7]} 10... Rd8 {[%clk 0:02:36.6]} 11.
O-O {[%clk 0:02:52.4]} 11... Bf8 {[%clk 0:02:09]} 12. Rac1 {[%clk 0:02:47.1]}
12... Ne7 {[%clk 0:02:05]} 13. Ne5 {[%clk 0:02:41.5]} 13... Ng6 {[%clk
0:01:57.4]} 14. Nxg6 {[%clk 0:02:07.2]} 14... Qxg6 {[%clk 0:01:55.9]} 15. Bf3
{[%clk 0:02:07.3]} 15... c6 {[%clk 0:01:54.4]} 16. b4 {[%clk 0:02:04.9]} 16...
b5 {[%clk 0:01:35.7]} 17. Qb3 {[%clk 0:02:01.6]} 17... Qd6 {[%clk 0:01:27.4]}
18. Ne2 {[%clk 0:01:25.8]} 18... Bd7 {[%clk 0:01:21.3]} 19. a3 {[%clk
0:01:20.6]} 19... a5 {[%clk 0:01:19.5]} 20. Rb1 {[%clk 0:01:13.8]} 20... axb4
{[%clk 0:01:18.1]} 21. axb4 {[%clk 0:01:14.7]} 21... Ra4 {[%clk 0:01:17.7]} 22.
Nf4 {[%clk 0:01:05.9]} 22... Rxb4 {[%clk 0:01:13.6]} 23. Qc3 {[%clk 0:01:04.5]}
23... Ra8 {[%clk 0:01:06.4]} 24. Nd3 {[%clk 0:01:03.5]} 24... Rba4 {[%clk
0:01:04.3]} 25. Nc5 {[%clk 0:01:02.3]} 25... Ra3 {[%clk 0:01:01.6]} 26. Qc2
{[%clk 0:01:01.1]} 26... Be8 {[%clk 0:01:00]} 27. Rfd1 {[%clk 0:00:55.6]} 27...
Qg6 {[%clk 0:00:53.3]} 28. Qe2 {[%clk 0:00:44.7]} 28... Ra2 {[%clk 0:00:50.7]}
29. Qe1 {[%clk 0:00:43.2]} 29... Bxc5 {[%clk 0:00:44.4]} 30. dxc5 {[%clk
0:00:42.9]} 30... Qc2 {[%clk 0:00:28.9]} 31. e4 {[%clk 0:00:39.9]} 31... dxe4
{[%clk 0:00:22.6]} 32. Bxe4 {[%clk 0:00:40.8]} 32... Qxc5 {[%clk 0:00:20.8]} 33.
Rbc1 {[%clk 0:00:36.1]} 33... Qg5 {[%clk 0:00:15.2]} 34. Bxc6 {[%clk 0:00:31.9]}
34... Bxc6 {[%clk 0:00:16.1]} 35. Rxc6 {[%clk 0:00:32]} 35... Qf5 {[%clk
0:00:04.5]} 36. Rcd6 {[%clk 0:00:24.8]} 36... Qc2 {[%clk 0:00:04.3]} 37. h3
{[%clk 0:00:21.9]} 37... Qc4 {[%clk 0:00:03.8]} 38. Qe3 {[%clk 0:00:17.8]} 38...
b4 {[%clk 0:00:02.4]} 39. R6d4 {[%clk 0:00:16]} 39... Qc2 {[%clk 0:00:02]} 40.
R4d2 {[%clk 0:00:11.7]} 40... Qc3 {[%clk 0:00:01.8]} 41. Rd8+ {[%clk 0:00:10.6]}
1-0

[Event "*** SCC Grand Prix: Titled Tuesday Blitz"]
[Site "Chess.com"]
[Date "2020.06.09"]
[Round "2"]
[White "Fusikk"]
[Black "Raja3401"]
[Result "1-0"]
[WhiteElo "2579"]
[BlackElo "2813"]
[TimeControl "180+1"]
[EndTime "9:18:36 PDT"]
[Termination "Fusikk won by resignation"]

1. d4 {[%clk 0:03:00.6]} 1... Nf6 {[%clk 0:03:00]} 2. c4 {[%clk 0:02:59.1]} 2...
e6 {[%clk 0:02:59.9]} 3. Nf3 {[%clk 0:02:59]} 3... d5 {[%clk 0:02:56.2]} 4. Nc3
{[%clk 0:02:56.4]} 4... c6 {[%clk 0:02:56.1]} 5. e3 {[%clk 0:02:53.6]} 5... Nbd7
{[%clk 0:02:55.9]} 6. Qc2 {[%clk 0:02:53.1]} 6... Bd6 {[%clk 0:02:53.6]} 7. Bd3
{[%clk 0:02:53]} 7... O-O {[%clk 0:02:53.6]} 8. O-O {[%clk 0:02:51.1]} 8... dxc4
{[%clk 0:02:53.9]} 9. Bxc4 {[%clk 0:02:50.4]} 9... b5 {[%clk 0:02:54.7]} 10. Be2
{[%clk 0:02:47.4]} 10... Bb7 {[%clk 0:02:53.9]} 11. e4 {[%clk 0:02:47.5]} 11...
e5 {[%clk 0:02:53.4]} 12. Bg5 {[%clk 0:02:47.6]} 12... Re8 {[%clk 0:02:22.4]}
13. Rad1 {[%clk 0:02:46.1]} 13... Qc7 {[%clk 0:02:13.9]} 14. h3 {[%clk 0:02:45]}
14... b4 {[%clk 0:02:07.5]} 15. dxe5 {[%clk 0:02:31.7]} 15... Nxe5 {[%clk
0:02:07.3]} 16. Bxf6 {[%clk 0:02:30.1]} 16... gxf6 {[%clk 0:02:01.2]} 17. Na4
{[%clk 0:02:29.8]} 17... c5 {[%clk 0:01:58.8]} 18. Nxe5 {[%clk 0:02:23.7]} 18...
Rxe5 {[%clk 0:01:56.8]} 19. f3 {[%clk 0:02:16.4]} 19... Rae8 {[%clk 0:01:41.6]}
20. Bc4 {[%clk 0:02:15.4]} 20... Bf8 {[%clk 0:01:37.9]} 21. b3 {[%clk
0:02:14.2]} 21... Rg5 {[%clk 0:01:35.9]} 22. Nb2 {[%clk 0:02:09.6]} 22... Qg3
{[%clk 0:01:33.9]} 23. Qf2 {[%clk 0:01:55.5]} 23... Qxh3 {[%clk 0:01:27.9]} 24.
Bd5 {[%clk 0:01:39.2]} 24... Bxd5 {[%clk 0:01:01.3]} 25. Rxd5 {[%clk 0:01:38.3]}
25... Qh6 {[%clk 0:00:51]} 26. Rxg5+ {[%clk 0:01:31.4]} 26... fxg5 {[%clk
0:00:50.3]} 27. Nc4 {[%clk 0:01:29.5]} 27... Qh4 {[%clk 0:00:35.2]} 28. Qxh4
{[%clk 0:01:21.1]} 28... gxh4 {[%clk 0:00:35.4]} 29. Rd1 {[%clk 0:01:21.6]}
29... Re6 {[%clk 0:00:31.8]} 30. Rd5 {[%clk 0:01:17.1]} 30... Ra6 {[%clk
0:00:29.3]} 31. Rd2 {[%clk 0:01:14.5]} 31... Bg7 {[%clk 0:00:29]} 32. e5 {[%clk
0:01:10.5]} 32... h5 {[%clk 0:00:20.7]} 33. f4 {[%clk 0:01:08.7]} 33... Bh6
{[%clk 0:00:19.7]} 34. Rf2 {[%clk 0:01:08]} 34... Kg7 {[%clk 0:00:20.1]} 35. Kh2
{[%clk 0:01:07.8]} 35... Rg6 {[%clk 0:00:19.2]} 36. Ne3 {[%clk 0:01:05.8]} 36...
Kf8 {[%clk 0:00:16.8]} 37. Nf5 {[%clk 0:01:04]} 37... Ra6 {[%clk 0:00:14.7]} 38.
Nxh4 {[%clk 0:01:00.5]} 38... f6 {[%clk 0:00:13.7]} 39. Nf5 {[%clk 0:00:58.9]}
39... fxe5 {[%clk 0:00:13.2]} 40. fxe5 {[%clk 0:00:58.8]} 40... Ke8 {[%clk
0:00:13.7]} 41. Nd6+ {[%clk 0:00:50.6]} 41... Ke7 {[%clk 0:00:12]} 42. Rf6
{[%clk 0:00:20.5]} 42... Bg5 {[%clk 0:00:07.1]} 43. Nc8+ {[%clk 0:00:19.1]} 1-0

[Event "*** SCC Grand Prix: Titled Tuesday Blitz"]
[Site "Chess.com"]
[Date "2020.06.09"]
[Round "2"]
[White "totoro9"]
[Black "Efremov_Vlad"]
[Result "1-0"]
[WhiteElo "2539"]
[BlackElo "2168"]
[TimeControl "180+1"]
[EndTime "9:18:38 PDT"]
[Termination "totoro9 won on time"]

1. e4 {[%clk 0:03:00.9]} 1... c5 {[%clk 0:02:59.4]} 2. Nf3 {[%clk 0:02:59.7]}
2... a6 {[%clk 0:02:59.5]} 3. c3 {[%clk 0:02:55.4]} 3... d5 {[%clk 0:02:58.9]}
4. e5 {[%clk 0:02:26.1]} 4... Nc6 {[%clk 0:02:57.1]} 5. d4 {[%clk 0:02:23]} 5...
cxd4 {[%clk 0:02:53.4]} 6. cxd4 {[%clk 0:02:22]} 6... Bg4 {[%clk 0:02:53.6]} 7.
Be3 {[%clk 0:01:39]} 7... e6 {[%clk 0:02:47.3]} 8. Nc3 {[%clk 0:01:34.8]} 8...
Nge7 {[%clk 0:02:40.2]} 9. Bd3 {[%clk 0:01:28.6]} 9... Nf5 {[%clk 0:02:39.8]}
10. Bxf5 {[%clk 0:01:27.6]} 10... Bxf5 {[%clk 0:02:39]} 11. O-O {[%clk
0:01:27.3]} 11... Bb4 {[%clk 0:02:35.2]} 12. Rc1 {[%clk 0:01:25.9]} 12... O-O
{[%clk 0:02:31.8]} 13. Na4 {[%clk 0:01:15.3]} 13... Rc8 {[%clk 0:02:03.4]} 14.
a3 {[%clk 0:01:11.5]} 14... Be7 {[%clk 0:01:59.1]} 15. Nc5 {[%clk 0:01:02.2]}
15... Na5 {[%clk 0:01:22.7]} 16. b4 {[%clk 0:01:00.5]} 16... Bxc5 {[%clk
0:01:19.4]} 17. dxc5 {[%clk 0:00:55.2]} 17... Nc4 {[%clk 0:01:18.9]} 18. Qb3
{[%clk 0:00:48.4]} 18... Qc7 {[%clk 0:00:48.7]} 19. Nd4 {[%clk 0:00:46.2]} 19...
Qxe5 {[%clk 0:00:41.7]} 20. a4 {[%clk 0:00:27.4]} 20... Bg6 {[%clk 0:00:33.3]}
21. Rfe1 {[%clk 0:00:25.5]} 21... Qc7 {[%clk 0:00:30.5]} 22. b5 {[%clk
0:00:22.7]} 22... e5 {[%clk 0:00:18.1]} 23. Nf3 {[%clk 0:00:15]} 23... axb5
{[%clk 0:00:17.2]} 24. axb5 {[%clk 0:00:14.6]} 24... f5 {[%clk 0:00:14.9]} 25.
Ng5 {[%clk 0:00:11.4]} 25... Qe7 {[%clk 0:00:11.8]} 26. f4 {[%clk 0:00:11.3]}
26... h6 {[%clk 0:00:09]} 27. Nf3 {[%clk 0:00:10.7]} 27... exf4 {[%clk
0:00:08.7]} 28. Bxf4 {[%clk 0:00:10]} 28... Qxc5+ {[%clk 0:00:08.6]} 29. Kh1
{[%clk 0:00:09.4]} 29... Kh8 {[%clk 0:00:08.4]} 30. Nh4 {[%clk 0:00:09.1]} 30...
Bh7 {[%clk 0:00:08.4]} 31. Be5 {[%clk 0:00:08.4]} 31... Rce8 {[%clk 0:00:07.7]}
32. Qg3 {[%clk 0:00:07.9]} 32... Qe7 {[%clk 0:00:05.9]} 33. Bc3 {[%clk
0:00:07.8]} 33... Qf7 {[%clk 0:00:05.8]} 34. Nf3 {[%clk 0:00:07.6]} 34... f4
{[%clk 0:00:05.6]} 35. Qg4 {[%clk 0:00:07.6]} 35... Ne3 {[%clk 0:00:05.8]} 36.
Qh4 {[%clk 0:00:07.3]} 36... Kg8 {[%clk 0:00:03.9]} 37. Nd4 {[%clk 0:00:06.7]}
37... Rc8 {[%clk 0:00:02.3]} 38. Nf3 {[%clk 0:00:06.8]} 38... Rfe8 {[%clk
0:00:02.1]} 39. Ne5 {[%clk 0:00:06.7]} 1-0

[Event "*** SCC Grand Prix: Titled Tuesday Blitz"]
[Site "Chess.com"]
[Date "2020.06.09"]
[Round "2"]
[White "BaMBoMaTTo"]
[Black "Hrant_ChessMood"]
[Result "0-1"]
[WhiteElo "2630"]
[BlackElo "3077"]
[TimeControl "180+1"]
[EndTime "9:18:39 PDT"]
[Termination "Hrant_ChessMood won on time"]

1. e4 {[%clk 0:03:00]} 1... c6 {[%clk 0:03:00.2]} 2. d4 {[%clk 0:02:59.9]} 2...
d5 {[%clk 0:03:00.8]} 3. e5 {[%clk 0:02:59.7]} 3... Bf5 {[%clk 0:03:00.1]} 4.
Nf3 {[%clk 0:03:00.1]} 4... e6 {[%clk 0:03:00.7]} 5. Be2 {[%clk 0:02:58.9]} 5...
Ne7 {[%clk 0:03:00.9]} 6. O-O {[%clk 0:02:58.2]} 6... Ng6 {[%clk 0:03:00.6]} 7.
c3 {[%clk 0:02:47.8]} 7... Be7 {[%clk 0:02:53.9]} 8. Ne1 {[%clk 0:02:29]} 8...
c5 {[%clk 0:02:42.1]} 9. Be3 {[%clk 0:02:21.7]} 9... Nc6 {[%clk 0:02:38.3]} 10.
Nd2 {[%clk 0:02:18.6]} 10... cxd4 {[%clk 0:02:26.6]} 11. cxd4 {[%clk 0:02:19.5]}
11... h5 {[%clk 0:01:48.2]} 12. Bxh5 {[%clk 0:02:15.2]} 12... Qb6 {[%clk
0:01:42.4]} 13. Nb3 {[%clk 0:01:23.2]} 13... a5 {[%clk 0:01:36.3]} 14. Bxg6
{[%clk 0:01:05.2]} 14... Bxg6 {[%clk 0:01:35.3]} 15. Nd3 {[%clk 0:01:05.5]}
15... a4 {[%clk 0:01:13.4]} 16. Nbc5 {[%clk 0:01:05.7]} 16... Qb5 {[%clk
0:01:13.9]} 17. Nf4 {[%clk 0:00:51.9]} 17... Bf5 {[%clk 0:01:13.1]} 18. g4
{[%clk 0:00:45.1]} 18... Bh7 {[%clk 0:01:09.2]} 19. Rc1 {[%clk 0:00:32.3]} 19...
Qxb2 {[%clk 0:00:55.4]} 20. Nxa4 {[%clk 0:00:30.2]} 20... Qxa2 {[%clk
0:00:42.4]} 21. Nc5 {[%clk 0:00:30.5]} 21... Qb2 {[%clk 0:00:33.5]} 22. Nh5
{[%clk 0:00:21.4]} 22... O-O {[%clk 0:00:28.8]} 23. Nd7 {[%clk 0:00:13.2]} 23...
Rfd8 {[%clk 0:00:24.2]} 24. Ndf6+ {[%clk 0:00:13.2]} 24... gxf6 {[%clk
0:00:20.7]} 25. exf6 {[%clk 0:00:14.1]} 25... Bf8 {[%clk 0:00:19.7]} 26. Qf3
{[%clk 0:00:12.8]} 26... Qb3 {[%clk 0:00:15.4]} 27. Qf4 {[%clk 0:00:11.2]} 27...
Qd3 {[%clk 0:00:15.1]} 28. Ng3 {[%clk 0:00:07.1]} 28... Bd6 {[%clk 0:00:13.1]}
29. Qh6 {[%clk 0:00:06.3]} 29... Qg6 {[%clk 0:00:13.6]} 30. Qh4 {[%clk
0:00:05.4]} 30... Ra3 {[%clk 0:00:13.1]} 31. Nh5 {[%clk 0:00:03.4]} 31... e5
{[%clk 0:00:10]} 32. dxe5 {[%clk 0:00:03.4]} 32... Nxe5 {[%clk 0:00:10.9]} 33.
Kh1 {[%clk 0:00:01.8]} 33... Qe4+ {[%clk 0:00:09.6]} 34. f3 {[%clk 0:00:02]}
34... Qxe3 {[%clk 0:00:09.2]} 0-1

[Event "*** SCC Grand Prix: Titled Tuesday Blitz"]
[Site "Chess.com"]
[Date "2020.06.09"]
[Round "2"]
[White "LittlePeasant"]
[Black "Skatchkov_V"]
[Result "1-0"]
[WhiteElo "2809"]
[BlackElo "2556"]
[TimeControl "180+1"]
[EndTime "9:18:40 PDT"]
[Termination "LittlePeasant won by resignation"]

1. d4 {[%clk 0:03:00.4]} 1... Nf6 {[%clk 0:02:59.3]} 2. c4 {[%clk 0:02:59.9]}
2... e6 {[%clk 0:02:59.8]} 3. Nf3 {[%clk 0:02:59.1]} 3... b6 {[%clk 0:03:00.3]}
4. Bf4 {[%clk 0:02:55.5]} 4... Bb7 {[%clk 0:03:00.1]} 5. e3 {[%clk 0:02:53.4]}
5... Be7 {[%clk 0:03:00.4]} 6. Bd3 {[%clk 0:02:51.6]} 6... O-O {[%clk
0:03:00.9]} 7. Nc3 {[%clk 0:02:50.4]} 7... d5 {[%clk 0:02:50.7]} 8. cxd5 {[%clk
0:02:40.5]} 8... Nxd5 {[%clk 0:02:37.3]} 9. Nxd5 {[%clk 0:02:31.9]} 9... Qxd5
{[%clk 0:02:34.5]} 10. Bxc7 {[%clk 0:02:25.4]} 10... Bb4+ {[%clk 0:02:33.6]} 11.
Ke2 {[%clk 0:02:25]} 11... Nd7 {[%clk 0:02:14.1]} 12. a3 {[%clk 0:02:19.6]}
12... Be7 {[%clk 0:02:11]} 13. Rc1 {[%clk 0:02:15.8]} 13... Rac8 {[%clk
0:02:09.8]} 14. Qa4 {[%clk 0:01:55.7]} 14... a6 {[%clk 0:01:34.6]} 15. e4 {[%clk
0:01:38.1]} 15... b5 {[%clk 0:01:30]} 16. exd5 {[%clk 0:01:31.4]} 16... bxa4
{[%clk 0:01:30.1]} 17. d6 {[%clk 0:01:24.5]} 17... Bf6 {[%clk 0:01:20.1]} 18.
Rc4 {[%clk 0:01:13]} 18... e5 {[%clk 0:01:13]} 19. dxe5 {[%clk 0:00:57.4]} 19...
Nxe5 {[%clk 0:00:44.7]} 20. Nxe5 {[%clk 0:00:56.6]} 20... Bxe5 {[%clk
0:00:44.1]} 21. Rhc1 {[%clk 0:00:33.9]} 21... Bxg2 {[%clk 0:00:18.1]} 22. d7
{[%clk 0:00:21.2]} 22... Rxc7 {[%clk 0:00:12.1]} 23. Rxc7 {[%clk 0:00:22.1]}
23... Bxc7 {[%clk 0:00:12.5]} 24. Rxc7 {[%clk 0:00:23]} 24... Bh3 {[%clk
0:00:12.6]} 25. Bxa6 {[%clk 0:00:22.6]} 25... g6 {[%clk 0:00:10.3]} 26. Bb5
{[%clk 0:00:16.8]} 26... Kg7 {[%clk 0:00:10.7]} 27. Bxa4 {[%clk 0:00:16.2]}
27... Kf6 {[%clk 0:00:11]} 28. Bb5 {[%clk 0:00:05.6]} 28... Ke7 {[%clk
0:00:11.2]} 29. a4 {[%clk 0:00:06.1]} 29... Rb8 {[%clk 0:00:11.2]} 30. b4 {[%clk
0:00:05.7]} 30... Kd8 {[%clk 0:00:10.8]} 31. Ra7 {[%clk 0:00:05.4]} 31... Be6
{[%clk 0:00:09.5]} 32. Kd3 {[%clk 0:00:04.9]} 32... h5 {[%clk 0:00:08.7]} 33.
Kc3 {[%clk 0:00:05.2]} 33... Ke7 {[%clk 0:00:08.2]} 34. Bc6 {[%clk 0:00:05.2]}
34... Kd6 {[%clk 0:00:06.7]} 35. b5 {[%clk 0:00:05.7]} 35... Rd8 {[%clk
0:00:07.3]} 36. a5 {[%clk 0:00:06]} 36... Bxd7 {[%clk 0:00:06.9]} 37. Rxd7+
{[%clk 0:00:06]} 37... Rxd7 {[%clk 0:00:07.4]} 38. Bxd7 {[%clk 0:00:06.9]} 38...
Kxd7 {[%clk 0:00:08.3]} 39. Kd4 {[%clk 0:00:07.8]} 39... Kc8 {[%clk 0:00:09]}
40. Ke5 {[%clk 0:00:08.2]} 40... Kb7 {[%clk 0:00:09.4]} 41. Kf6 {[%clk
0:00:08.8]} 1-0